Workbook

Sheet 2018
A1: Приложение № 5 к решению Совета депутатов Усть-Чульского сельсовета от 25 ноября 2021 г. № 35 «О проекте бюджета муниципального образования Усть-Чульский сельсовет на 2022 год»
A4: РАСПРЕДЕЛЕНИЕ расходов местного бюджета по разделам, подразделам, целевым статьям, группам и подгруппам видов расходов классификации расходов администрации Усть-Чульского сельсовета Аскизского района республики Хакасия
A5: (тыс. рублей) | AV5: Табл поправок
A6: Наименование показателя | B6: РЗ | C6: ПР | D6: ЦСР | E6: ВР | F6: Сумма | X6: июль | AL6: таблица поправок | CI6: 2001-12-01
A7: ОБЩЕГОСУДАРСТВЕННЫЕ ВОПРОСЫ | B7: 01 | C7: 00 | D7: 00 0 00 00000 | E7: 000 | F7: =F8+F14+F22+F27 -> 3672
A8: Функционирование высшего должностного лица субъекта Российской Федерации и муниципального образования | B8: 01 | C8: 02 | D8: 00 0 00 00000 | E8: 000 | F8: =F9 -> 547
A9: Непрограммные расходы в сфере установленных функций органов местного самоуправления (органов местного самоуправления, муниципальных учреждений) муниципального образования Аскизский район | B9: 01 | C9: 02 | D9: 40 0 00 00000 | E9: 000 | F9: =F10 -> 547
A10: Глава муниципального образования | B10: 01 | C10: 02 | D10: 40 0 00 10000 | E10: 000 | F10: =F11 -> 547
A11: Расходы на выплату персоналу государственных (муниципальных) органов | B11: 01 | C11: 02 | D11: 40 0 00 10000 | E11: 120 | F11: =F12+F13 -> 547 | AO11: 50 | AX11: 45 | AY11: 60 | AZ11: 80 | BA11: 121.6 | CI11: 50 | CJ11: 118
A12: Фонд оплаты труда государственных (муниципальных) органов | B12: 01 | C12: 02 | D12: 40 0 00 14000 | E12: 121 | F12: 420
A13: Взносы по обязательному социальному страхованию на выплаты денежного содержания и иные выплаты работникам государственных (муниципальных) органов | B13: 01 | C13: 02 | D13: 40 0 00 14000 | E13: 129 | F13: 127
A14: Функционирование Правительства Российской Федерации, высших исполнительных органов государственной власти субъектов Российской Федерации, местных администраций | B14: 01 | C14: 04 | D14: 00 0 00 00000 | E14: 000 | F14: =F15 -> 3113
A15: Непрограммные расходы в сфере установленных функций органов местного самоуправления (органов местного самоуправления, муниципальных учреждений) муниципального образования Усть-Чульский сельсовет | B15: 01 | C15: 04 | D15: 40 0 00 00000 | E15: 000 | F15: =F16 -> 3113
A16: Обеспечение деятельности администрации района, муниципальных учреждений | B16: 01 | C16: 04 | D16: 40 4 00 00000 | E16: 000 | F16: =F17 -> 3113
A17: Центральный аппарат | B17: 01 | C17: 04 | D17: 40 4 00 10000 | E17: 000 | F17: =F18+F21 -> 3113
A18: Расходы на выплату персоналу государственных (муниципальных) органов | B18: 01 | C18: 04 | D18: 40 4 00 10000 | E18: 120 | F18: =F19+F20 -> 1337 | X18: 700 | AO18: -25.2 | AP18: 1143.7 | AX18: 570 | AY18: 716 | AZ18: 1170 | BA18: 1553.8 | CI18: 420 | CJ18: 1762 | CK18: -90
A19: Фонд оплаты труда государственных (муниципальных) органов | B19: 01 | C19: 04 | D19: 40 4 00 10000 | E19: 121 | F19: 1050
A20: Взносы по обязательному социальному страхованию на выплаты денежного содержания и иные выплаты работникам государственных (муниципальных) органов | B20: 01 | C20: 04 | D20: 40 4 00 10000 | E20: 129 | F20: 287
A21: Иные закупки товаров, работ, услуг для обеспечения государственных (муниципальных нужд) | B21: 01 | C21: 04 | D21: 40 4 00 10000 | E21: 240 | F21: 1776 | J21: 20 | K21: 35 | L21: 100 | X21: 87 | Y21: 25 | Z21: 121 | AL21: 100 | AO21: -121 | AP21: 842 | AX21: 477.1 | CI21: 100 | CJ21: -67
A22: Резервные фонды | B22: 01 | C22: 11 | D22: 00 0 00 00000 | E22: 000 | F22: 10
A23: Непрограммные расходы в сфере установленных функций органов местного самоуправления (органов местного самоуправления, муниципальных учреждений) муниципального образования Усть-Чульский сельсовет | B23: 01 | C23: 11 | D23: 40 0 00 00000 | E23: 000 | F23: 10
A24: Обеспечение деятельности администрации района, муниципальных учреждений | B24: 01 | C24: 11 | D24: 40 4 00 00000 | E24: 000 | F24: 10
A25: Резервные фонды | B25: 01 | C25: 11 | D25: 40 4 00 07050 | E25: 800 | F25: 10
A26: Резервные средства | B26: 01 | C26: 11 | D26: 40 4 00 07050 | E26: 870 | F26: 10 | G26: -400 | J26: -573.5 | K26: -573 | L26: -350 | M26: -82.3 | N26: -3300 | O26: -240 | P26: 2702.2 | X26: -215 | Y26: -522 | Z26: -400 | AA26: -1000 | AB26: -773 | AC26: -243.1 | AD26: -2230 | AE26: -87 | AF26: -245 | AG26: 1888.5 | AH26: 215 | AI26: -380 | AO26: -461 | AP26: -50 | AQ26: -700 | AR26: -328.8 | AS26: -71.1 | AT26: 205.7 | AX26: -500 | AY26: -260 | AZ26: -230.7 | BA26: 800 | CI26: -500 | CJ26: -185 | CK26: -56 | CL26: -100 | CM26: -100 | CN26: -554.9
A27: Муниципальная программа проведение кадастровых работ в отношении земельных участов из состава земель сельскохозяйственного назначения находящихся или относящихся к собственности муниципального образования Усть-Чульский сельсовет Аскизского района Усть-Чульский сельсовет Аскизского района Республики Хакасия ,государственная собственность на которые неразграничена ,образованных в счет невостребованных земельных долей на 202-2023 годы" | B27: 01 | C27: 11 | D27: 40 4 00 00000 | E27: 000 | F27: 2
A28: Мероприятия по проведению кадастровых работ в отношении земельных участков из состава земель сельскохозяйственного назначения находящихся или относящихся к собственности муниципального образования Усть-Чульский сельсовет | B28: 01 | C28: 11 | D28: 40 4 00 00000 | E28: 000 | F28: 2
A29: Закупка товаров, работ и услуг для орбеспечения государственных (муниципальных) нужд | B29: 01 | C29: 11 | D29: 40 4 00 00000 | E29: 200 | F29: 2
A30: Иные закупки товаров, работ, услуг для обеспечения государственных (муниципальных нужд) | B30: 01 | C30: 11 | D30: 40 4 00 00000 | E30: 240 | F30: 2
A31: НАЦИОНАЛЬНАЯ ОБОРОНА | B31: 02 | C31: 03 | D31: 00 0 00 00000 | E31: 000 | F31: =F32 -> 383.3
A32: Непрограммные расходы в сфере установленных функций органов местного самоуправления (органов местного самоуправления, муниципальных учреждений) муниципального образования Усть-Чульский сельсовет | B32: 02 | C32: 03 | D32: 40 0 00 00000 | E32: 000 | F32: 383.3
A33: Обеспечение деятельности администрации района, муниципальных учреждений | B33: 02 | C33: 03 | D33: 40 4 00 00000 | E33: 000 | F33: 383.3
A34: Осуществление первичного воинского учета на территориях, где отсутствуют военные комиссариаты | B34: 02 | C34: 03 | D34: 40 4 00 51180 | E34: 000 | F34: 383.3
A35: Расходы на выплату персоналу в целях обеспечения выполнения функций государственными (муниципальными) органами, казенными учреждениями, органами управления государственными внебюджетными фондами | B35: 02 | C35: 03 | D35: 40 4 00 511810 | E35: 100 | F35: 383.3
A36: Расходы на выплату персоналу казенных учреждений | B36: 02 | C36: 03 | D36: 40 4 00 511810 | E36: 110 | F36: 383.3
A37: Фонд оплаты труда учреждений | B37: 02 | C37: 03 | D37: 40 4 00 511810 | E37: 111 | F37: 294.4
A38: Взносы по обязательному социальному страхованию на выплаты денежного содержания и иные выплаты работникам государственных (муниципальных) органов | B38: 02 | C38: 03 | D38: 40 4 00 511810 | E38: 119 | F38: 118.5
A39: НАЦИОНАЛЬНАЯ БЕЗОПАСНОСТЬ И ПРАВООХРАНИТЕЛЬНАЯ ДЕЯТЕЛЬНОСТЬ | B39: 03 | C39: 00 | D39: 00 0 00 00000 | E39: 000 | F39: =F40+F48+F44 -> 189
A40: Обеспечение пожарной безопасности | B40: 03 | C40: 10 | D40: 00 0 00 00000 | E40: 000 | F40: 91
A41: Муниципальная программа "Противопожарная безопасность Усть-Чульского сельсовета на 2019-2021 годы" | B41: 03 | C41: 10 | D41: 06 0 00 00000 | E41: 000 | F41: =F42 -> 91
A42: Закупка товаров, работ и услуг для орбеспечения государственных (муниципальных) нужд | B42: 03 | C42: 10 | D42: 06 0 00 21090 | E42: 200 | F42: =F43 -> 91
A43: Иные закупки товаров, работ, услуг для обеспечения государственных (муниципальных нужд) | B43: 03 | C43: 10 | D43: 06 0 00 21090 | E43: 240 | F43: 91 | AO43: 231.65
A44: Муниципальная программа «Комплексное развитие систем коммунальной инфраструктуры муниципального образования Усть-Чульский сельсовет 2020-2023 годы | B44: 03 | C44: 10 | D44: 17 0 01 21100 | E44: 000 | F44: 85
A45: Мероприятия по развитию систем коммунальной инфраструктуры | B45: 03 | C45: 10 | D45: 17 0 01 21100 | E45: 000 | F45: 85
A46: Закупка товаров, работ и услуг для орбеспечения государственных (муниципальных) нужд | B46: 03 | C46: 10 | D46: 17 0 01 21100 | E46: 200 | F46: 85
A47: Иные закупки товаров, работ, услуг для обеспечения государственных (муниципальных нужд) | B47: 03 | C47: 10 | D47: 17 0 01 21100 | E47: 240 | F47: 85
A48: Другие вопросы в области национальной безопасности и правоохранительной деятельности | B48: 03 | C48: 14 | D48: 00 0 00 00000 | E48: 000 | F48: =F49+F53 -> 13
A49: Муниципальная программа "Противодействие терроризму и экстремизму на территории Усть-Чульского сельсовета на 2019-2022 годы" | B49: 03 | C49: 14 | D49: 01 0 00 00000 | E49: 000 | F49: 5
A50: Мероприятия в сфере противодействия терроризму и экстремизму | B50: 03 | C50: 14 | D50: 01 0 00 21100 | E50: 000 | F50: 5
A51: Закупка товаров, работ и услуг для орбеспечения государственных (муниципальных) нужд | B51: 03 | C51: 14 | D51: 01 0 00 21100 | E51: 200 | F51: 5
A52: Иные закупки товаров, работ, услуг для обеспечения государственных (муниципальных нужд) | B52: 03 | C52: 14 | D52: 01 0 00 21100 | E52: 240 | F52: 5
A53: Муниципальная программа "Профилактика правонарушений на территории Усть-Чульского сельсовета на 2021-2023 годы" | B53: 03 | C53: 14 | D53: 05 0 00 21080 | E53: 000 | F53: =F54 -> 8
A54: Мероприятия в сфере профилактике правонарушений | B54: 03 | C54: 14 | D54: 05 0 00 21080 | E54: 000 | F54: =F55 -> 8
A55: Закупка товаров, работ и услуг для орбеспечения государственных (муниципальных) нужд | B55: 03 | C55: 14 | D55: 05 0 00 21080 | E55: 200 | F55: =F56 -> 8
A56: Иные закупки товаров, работ, услуг для обеспечения государственных (муниципальных нужд) | B56: 03 | C56: 14 | D56: 05 0 00 21080 | E56: 240 | F56: 8 | CI56: 10
A57: НАЦИОНАЛЬНАЯ ЭКОНОМИКА | B57: 04 | C57: 00 | D57: 00 0 00 00000 | E57: 000 | F57: =F58+F68 -> 3438.2
A58: Дорожное хозяйство (дорожные фонды) | B58: 04 | C58: 09 | D58: 00 0 00 00000 | E58: 000 | F58: =F59 -> 1185.5
A59: Содержание и ремонт атомобильных дорог | B59: 04 | C59: 09 | D59: 40 4 00 00200 | E59: 000 | F59: =F60 -> 1185.5
A60: Закупка товаров, работ и услуг для орбеспечения государственных (муниципальных) нужд | B60: 04 | C60: 09 | D60: 40 4 00 00200 | E60: 200 | F60: =F61 -> 1185.5
A61: Иные закупки товаров, работ, услуг для обеспечения государственных (муниципальных нужд) | B61: 04 | C61: 09 | D61: 40 4 00 00200 | E61: 240 | F61: =F62+F65 -> 1185.5
A62: Муниципальная программа «Комплексное развитие систем транспортной инфраструктуры муниципального образования Усть-Чульский сельсовет Аскизского района Республики Хакасия на 2021-2023 годы | B62: 04 | C62: 09 | D62: 40 4 00 21100 | E62: 000 | F62: 450
A63: Закупка товаров, работ и услуг для орбеспечения государственных (муниципальных) нужд | B63: 04 | C63: 09 | D63: 40 4 00 21100 | E63: 200 | F63: 450
A64: Иные закупки товаров, работ, услуг для обеспечения государственных (муниципальных нужд) | B64: 04 | C64: 09 | D64: 40 4 00 21100 | E64: 240 | F64: 450
A65: Муниципальная программа «Совершенствование и развитие автомобильных дорог на территории Усть-Чульского сельсовета Аскизского района республики Хакасия | B65: 04 | C65: 09 | D65: 08 0 00 21020 | E65: 000 | F65: 735.5
A66: Закупка товаров, работ и услуг для орбеспечения государственных (муниципальных) нужд | B66: 04 | C66: 09 | D66: 08 0 00 21020 | E66: 200 | F66: 735.5
A67: Иные закупки товаров, работ, услуг для обеспечения государственных (муниципальных нужд) | B67: 04 | C67: 09 | D67: 08 0 00 21020 | E67: 240 | F67: 735.5
A68: Обеспечение деятельности подведомственных учреждений (Учебно-методические кабинеты, централизованные бухгалтерии, группы хозяйственного обслуживания) | B68: 04 | C68: 12 | D68: 40 4 00 17090 | E68: 000 | F68: =F69+F73 -> 2252.7
A69: Расходы на выплату персоналу в целях обеспечения выполнения функций государственными (муниципальными) органами, казенными учреждениями, органами управления государственными фнебюджетными фондами | B69: 04 | C69: 12 | D69: 40 4 00 17090 | E69: 100 | F69: =F70 -> 2052.7
A70: Расходы на выплату персоналу казенных учреждений | B70: 04 | C70: 12 | D70: 40 4 00 17090 | E70: 110 | F70: =F71+F72 -> 2052.7
A71: Фонд оплаты труда учреждений | B71: 04 | C71: 12 | D71: 40 4 00 17090 | E71: 111 | F71: 1579
A72: Взносы по обязательному социальному страхованию на выплаты денежного содержания и иные выплаты работникам государственных (муниципальных) органов | B72: 04 | C72: 12 | D72: 40 4 00 17090 | E72: 119 | F72: 473.7
A73: Закупка товаров, работ и услуг для орбеспечения государственных (муниципальных) нужд | B73: 04 | C73: 12 | D73: 40 4 00 17090 | E73: 200 | F73: 200
A74: Иные закупки товаров, работ, услуг для обеспечения государственных (муниципальных нужд) | B74: 04 | C74: 12 | D74: 40 4 00 17090 | E74: 240 | F74: 200 | X74: 150
A75: ЖИЛИЩНО-КОММУНАЛЬНОЕ ХОЗЯЙСТВО | B75: 05 | C75: 00 | D75: 00 0 00 00000 | E75: 000 | F75: =F76+F80 -> 20
A76: Муниципальная программа «Энергосбережение и повышение энергетической эффективности в муниципальном образовании Усть-Чульский сельсовет на 2021-2024 годы | B76: 05 | C76: 02 | D76: 00 0 00 00000 | E76: 000 | F76: =F77 -> 10
A77: Мероприятия в сфере энергосбережения и повышение энергетической эффективности | B77: 05 | C77: 02 | D77: 04 0 00 21110 | E77: 000 | F77: 10
A78: Закупка товаров, работ и услуг для обеспечения государственных (муниципальных) нужд | B78: 05 | C78: 02 | D78: 04 0 00 21110 | E78: 200 | F78: 10 | J78: 1714.3 | AO78: 1238.39 | AP78: -1239.03
A79: Иные закупки товаров, работ, услуг для обеспечения государственных (муниципальных нужд) | B79: 05 | C79: 02 | D79: 04 0 00 21110 | E79: 240 | F79: 10
A80: Муниципальная программа «Благоустройство террриторий Усть-Чульского сельсовета на 2020-2023 годы | B80: 05 | C80: 03 | D80: 10 0 01 21100 | E80: 000 | F80: 10
A81: Мероприятия в сфере благоустройства | B81: 05 | C81: 03 | D81: 10 0 01 21100 | E81: 000 | F81: 10
A82: Закупка товаров, работ и услуг для орбеспечения государственных (муниципальных) нужд | B82: 05 | C82: 03 | D82: 10 0 01 21100 | E82: 200 | F82: 10
A83: иные закупки товаров, работ, услуг для обеспечения государственных (муниципальных нужд) | B83: 05 | C83: 03 | D83: 10 0 01 21100 | E83: 240 | F83: 10
A84: ОХРАНА ОКРУЖАЮЩЕЙ СРЕДЫ | B84: 06 | C84: 00 | D84: 00 0 00 00000 | E84: 000 | F84: =F85 -> 14
A85: Другие вопросы в области охраны окружающей среды | B85: 06 | C85: 05 | D85: 00 0 00 00000 | E85: 000 | F85: =F86+F90 -> 14
A86: Муниципальная программа «Экологическая безопасность Усть-Чульского сельсовета на 2020 - 2022 годы» | B86: 06 | C86: 05 | D86: 10 0 01 21100 | E86: 000 | F86: 13
A87: Мероприятия в сфере охраны окружающей среды | B87: 06 | C87: 05 | D87: 10 0 01 21100 | E87: 000 | F87: 13
A88: Закупка товаров, работ и услуг для орбеспечения государственных (муниципальных) нужд | B88: 06 | C88: 05 | D88: 10 0 01 21100 | E88: 200 | F88: 13
A89: Иные закупки товаров, работ, услуг для обеспечения государственных (муниципальных нужд) | B89: 06 | C89: 05 | D89: 10 0 01 21100 | E89: 240 | F89: 13 | G89: 300 | AO89: -300
A90: Муниципальная программа «Использование и охрана земель на территории Муниципального образования Усть-Чульский сельсовет на 2021-2024 годы» | B90: 06 | C90: 05 | D90: 10 0 01 21100 | E90: 000 | F90: 1
A91: закупка товаров, работ и услуг для орбеспечения государственных (муниципальных) нужд | B91: 06 | C91: 05 | D91: 10 0 01 21100 | E91: 200 | F91: 1
A92: иные закупки товаров, работ, услуг для обеспечения государственных (муниципальных нужд) | B92: 06 | C92: 05 | D92: 10 0 01 21100 | E92: 240 | F92: 1
A93: КУЛЬТУРА, КИНЕМАТОГРАФИЯ | B93: 08 | C93: 00 | D93: 00 0 00 00000 | E93: 000 | F93: =F94+F103 -> 4555.1
A94: Культура | B94: 08 | C94: 01 | D94: 00 0 00 00000 | E94: 000 | F94: =F97+F101 -> 3602.6
A95: Непрограммные расходы в сфере установленных функций органов местного самоуправления (органов местного самоуправления, муниципальных учреждений) муниципального образования Усть-Чульский сельсовет | B95: 08 | C95: 01 | D95: 40 0 00 00000 | E95: 000 | F95: =F96 -> 3602.6
A96: Обеспечение деятельности администрации муниципального образования, муниципальных учреждений | B96: 08 | C96: 01 | D96: 40 4 00 16090 | E96: 000 | F96: =F97+F101 -> 3602.6
A97: Расходы на выплату персоналу в целях обеспечения выполнения функций государственными (муниципальными) органами, казенными учреждениями, органами управления государственными внебюджетными фондами | B97: 08 | C97: 01 | D97: 40 4 00 16090 | E97: 100 | F97: =F98 -> 1931.4
A98: Расходы на выплату персоналу казенных учреждений | B98: 08 | C98: 01 | D98: 40 4 00 16090 | E98: 110 | F98: =F99+F100 -> 1931.4
A99: Фонд оплаты труда учреждений | B99: 08 | C99: 01 | D99: 40 4 00 16090 | E99: 111 | F99: 1483.4 | X99: 550 | AO99: 1070 | AP99: 568 | AX99: -600 | CI99: 500 | CJ99: 850
A100: Взносы по обязательному социальному страхованию на выплаты по оплате труда работников и иные выплаты работникам учреждений | B100: 08 | C100: 01 | D100: 40 4 00 16090 | E100: 119 | F100: 448
A101: Закупка товаров, работ и услуг для орбеспечения государственных (муниципальных) нужд | B101: 08 | C101: 01 | D101: 40 4 00 16090 | E101: 200 | F101: 1671.2 | AX101: 7101.8 | AY101: 1845.1
A102: Иные закупки товаров, работ, услуг для обеспечения государственных (муниципальных нужд) | B102: 08 | C102: 01 | D102: 40 4 00 16090 | E102: 240 | F102: 1671.2
A103: Другие вопросы в области культуры, кинематографии | B103: 08 | C103: 04 | D103: 00 0 00 00000 | E103: 000 | F103: =F104 -> 952.5
A104: Непрограммные расходы в сфере установленных функций органов местного самоуправления (органов местного самоуправления, муниципальных учреждений) муниципального образования Усть-Чульский сельсовет | B104: 08 | C104: 04 | D104: 40 0 00 00000 | E104: 000 | F104: =F105 -> 952.5
A105: Обеспечение деятельности администрации муниципального образования, муниципальных учреждений | B105: 08 | C105: 04 | D105: 40 4 00 00000 | E105: 000 | F105: =F106 -> 952.5
A106: Обеспечение деятельности подведомственных учреждений (Учебно-методические кабинеты, централизованные бухгалтерии, группы хозяйственного обслуживания) | B106: 08 | C106: 04 | D106: 40 4 00 17090 | E106: 000 | F106: =F107 -> 952.5
A107: Расходы на выплату персоналу в целях обеспечения выполнения функций государственными (муниципальными) органами, казенными учреждениями, органами управления государственными внебюджетными фондами | B107: 08 | C107: 04 | D107: 40 4 00 17090 | E107: 100 | F107: =F108 -> 952.5
A108: Расходы на выплату персоналу казенных учреждений | B108: 08 | C108: 04 | D108: 40 4 00 17090 | E108: 110 | F108: =F109+F110 -> 952.5 | J108: -16 | K108: 250 | X108: 13 | AO108: -3.3 | CI108: 16 | CJ108: 100 | CK108: 10
A109: Фонд оплаты труда учреждений | B109: 08 | C109: 04 | D109: 40 4 00 17090 | E109: 111 | F109: 731.6 | J109: 16
A110: Взносы по обязательному социальному страхованию на выплаты денежного содержания и иные выплаты работникам государственных (муниципальных) органов | B110: 08 | C110: 04 | D110: 40 4 00 17090 | E110: 119 | F110: 220.9
A111: СОЦИАЛЬНАЯ ПОЛИТИКА | B111: 10 | C111: 00 | D111: 00 0 00 00000 | E111: 000 | F111: =F112+F117 -> 121
A112: Пенсионное обеспечение | B112: 10 | C112: 01 | D112: 00 0 00 00000 | E112: 000 | F112: 110
A113: Непрограммные расходы в сфере установленных функций органов местного самоуправления (органов местного самоуправления, муниципальных учреждений) муниципального образования Усть-Чульский сельсовет | B113: 10 | C113: 01 | D113: 40 0 00 00000 | E113: 000 | F113: 110
A114: Доплаты к пенсиям муниципальных служащих | B114: 10 | C114: 01 | D114: 40 0 00 80020 | E114: 000 | F114: 110
A115: Социальное обеспечение и иные выплаты населению | B115: 10 | C115: 01 | D115: 40 0 00 80020 | E115: 300 | F115: 110
A116: Публичные нормативные социальные выплаты гражданам | B116: 10 | C116: 01 | D116: 40 0 00 80020 | E116: 310 | F116: 110 | AX116: -8 | CI116: 30
A117: Программа социально-экономического развития муниципального образования Усть-Чульский сельсовет на 2021-2024 года | B117: 10 | C117: 01 | D117: 40 0 00 80020 | E117: 000 | F117: 11
A118: закупка товаров, работ и услуг для орбеспечения государственных (муниципальных) нужд | D118: 40 0 00 80020 | E118: 200 | F118: 11
A119: Иные закупки товаров, работ, услуг для обеспечения государственных (муниципальных нужд) | D119: 40 0 00 80020 | E119: 240 | F119: 11
A120: ФИЗИЧЕСКАЯ КУЛЬТУРА И СПОРТ | B120: 11 | C120: 00 | D120: 00 0 00 00000 | E120: 000 | F120: =F121 -> 13
A121: Другие вопросы в области физической культуры и спорта | B121: 11 | C121: 05 | D121: 00 0 00 00000 | E121: 000 | F121: 13
A122: Непрограммные расходы в сфере установленных функций органов местного самоуправления (органов местного самоуправления, муниципальных учреждений) муниципального образования Усть-Чульский сельсовет | B122: 11 | C122: 05 | D122: 40 0 00 00000 | E122: 000 | F122: 13
A123: Обеспечение деятельности подведомственных учреждений (организации в области молодежной политики и оздоровления детей) | B123: 11 | C123: 05 | D123: 40 4 00 19090 | E123: 000 | F123: 13
A124: Закупка товаров, работ и услуг для орбеспечения государственных (муниципальных) нужд | B124: 11 | C124: 05 | D124: 40 4 00 19090 | E124: 200 | F124: 13
A125: Иные закупки товаров, работ, услуг для обеспечения государственных (муниципальных нужд) | B125: 11 | C125: 05 | D125: 40 4 00 19090 | E125: 240 | F125: 13
A126: ИТОГО РАСХОДОВ | F126: =F7+F31+F39+F57+F75+F84+F93+F111+F120 -> 12405.6
A128: Глава Усть-Чульского сельсовета З.А.Ултургашева

Sheet Лист1
